[Event "*** Titled Tuesday Blitz"]
[Site "Chess.com"]
[Date "2021.04.06"]
[Round "2"]
[White "PLAYER_2006_M"]
[Black "GadimbayliA"]
[Result "0-1"]
[WhiteElo "2522"]
[BlackElo "2789"]
[TimeControl "180+1"]
[EndTime "10:20:12 PDT"]
[Termination "GadimbayliA won by checkmate"]

1. d4 {[%clk 0:03:00.9]} 1... d5 {[%clk 0:03:00]} 2. Nc3 {[%clk 0:03:01.5]} 2...
Nf6 {[%clk 0:02:59.4]} 3. Bf4 {[%clk 0:03:02.1]} 3... g6 {[%clk 0:02:58.7]} 4.
h4 {[%clk 0:02:56.3]} 4... Bg7 {[%clk 0:02:57.4]} 5. Qd2 {[%clk 0:02:52.3]} 5...
h6 {[%clk 0:02:42.2]} 6. O-O-O {[%clk 0:02:51.5]} 6... c6 {[%clk 0:02:42.2]} 7.
Nf3 {[%clk 0:02:50.1]} 7... Nbd7 {[%clk 0:02:42]} 8. Ne5 {[%clk 0:02:47.9]} 8...
Nxe5 {[%clk 0:02:40.5]} 9. dxe5 {[%clk 0:02:40.7]} 9... Ng4 {[%clk 0:02:32.8]}
10. e4 {[%clk 0:02:41.1]} 10... d4 {[%clk 0:02:24.3]} 11. h5 {[%clk 0:01:49.5]}
11... g5 {[%clk 0:02:18.7]} 12. Bg3 {[%clk 0:01:49.3]} 12... Nxe5 {[%clk
0:02:11.3]} 13. Qxd4 {[%clk 0:01:47.2]} 13... Qxd4 {[%clk 0:01:55.8]} 14. Rxd4
{[%clk 0:01:48.1]} 14... O-O {[%clk 0:01:56.5]} 15. Be2 {[%clk 0:01:44.5]} 15...
Be6 {[%clk 0:01:55]} 16. Rhd1 {[%clk 0:01:43.6]} 16... b5 {[%clk 0:01:44.8]} 17.
a4 {[%clk 0:01:10.5]} 17... Nc4 {[%clk 0:01:23.7]} 18. e5 {[%clk 0:01:00.9]}
18... Nxe5 {[%clk 0:01:06]} 19. axb5 {[%clk 0:01:00.4]} 19... cxb5 {[%clk
0:01:05.6]} 20. Nxb5 {[%clk 0:00:52.9]} 20... Rfc8 {[%clk 0:00:58.3]} 21. Re4
{[%clk 0:00:51.4]} 21... Bf5 {[%clk 0:00:48.7]} 22. Rdd4 {[%clk 0:00:28.8]}
22... Nc6 {[%clk 0:00:33.9]} 23. Rc4 {[%clk 0:00:17.6]} 23... Bxe4 {[%clk
0:00:29.8]} 24. Rxe4 {[%clk 0:00:18.5]} 24... f5 {[%clk 0:00:30.2]} 25. Re6
{[%clk 0:00:16.5]} 25... f4 {[%clk 0:00:24.1]} 26. Bh2 {[%clk 0:00:15.2]} 26...
a6 {[%clk 0:00:18.8]} 27. Na3 {[%clk 0:00:10.7]} 27... Nd4 {[%clk 0:00:17.3]}
28. Rxe7 {[%clk 0:00:11.3]} 28... Bf8 {[%clk 0:00:11.1]} 29. Re4 {[%clk
0:00:07.3]} 29... Nxe2+ {[%clk 0:00:09.2]} 30. Rxe2 {[%clk 0:00:08.2]} 30...
Bxa3 {[%clk 0:00:09.7]} 31. bxa3 {[%clk 0:00:08.5]} 31... Re8 {[%clk 0:00:10.2]}
32. Rd2 {[%clk 0:00:09]} 32... Rad8 {[%clk 0:00:09.1]} 33. Rxd8 {[%clk
0:00:03.3]} 33... Rxd8 {[%clk 0:00:10]} 34. f3 {[%clk 0:00:04.2]} 34... Kf7
{[%clk 0:00:07.9]} 35. Bg1 {[%clk 0:00:04.1]} 35... Ke6 {[%clk 0:00:08.1]} 36.
Bc5 {[%clk 0:00:04.3]} 36... Kf5 {[%clk 0:00:07.3]} 37. c3 {[%clk 0:00:03.3]}
37... g4 {[%clk 0:00:07.2]} 38. Kc2 {[%clk 0:00:03.3]} 38... gxf3 {[%clk
0:00:07.6]} 39. gxf3 {[%clk 0:00:04]} 39... Rd5 {[%clk 0:00:06.9]} 40. Bf8
{[%clk 0:00:03]} 40... Kg5 {[%clk 0:00:06.2]} 41. c4 {[%clk 0:00:03.5]} 41...
Rf5 {[%clk 0:00:04.8]} 42. Be7+ {[%clk 0:00:04.2]} 42... Kxh5 {[%clk 0:00:05.1]}
43. c5 {[%clk 0:00:05.1]} 43... Re5 {[%clk 0:00:04.1]} 44. Bd6 {[%clk
0:00:05.6]} 44... Rd5 {[%clk 0:00:03.9]} 45. Kc3 {[%clk 0:00:06.1]} 45... Kg5
{[%clk 0:00:03.7]} 46. Kc4 {[%clk 0:00:07]} 46... Rd1 {[%clk 0:00:04.1]} 47.
Be7+ {[%clk 0:00:07.3]} 47... Kf5 {[%clk 0:00:03.6]} 48. c6 {[%clk 0:00:07.9]}
48... Ke6 {[%clk 0:00:04]} 49. Bf8 {[%clk 0:00:05.6]} 49... Rc1+ {[%clk
0:00:04.5]} 50. Kd4 {[%clk 0:00:05.8]} 50... Rxc6 {[%clk 0:00:02.6]} 51. Bxh6
{[%clk 0:00:05.5]} 51... Kf5 {[%clk 0:00:03.1]} 52. Bf8 {[%clk 0:00:05.2]} 52...
Rc8 {[%clk 0:00:03.1]} 53. Bb4 {[%clk 0:00:04.1]} 53... Rd8+ {[%clk 0:00:03.2]}
54. Kc4 {[%clk 0:00:04.1]} 54... Rg8 {[%clk 0:00:03.7]} 55. Kd3 {[%clk
0:00:04.2]} 55... Rg3 {[%clk 0:00:04.1]} 56. Ke2 {[%clk 0:00:04.9]} 56... Rh3
{[%clk 0:00:04.6]} 57. Kf2 {[%clk 0:00:05.2]} 57... Rh2+ {[%clk 0:00:05.1]} 58.
Kf1 {[%clk 0:00:04.1]} 58... Ra2 {[%clk 0:00:06]} 59. Ke1 {[%clk 0:00:04.7]}
59... Ke6 {[%clk 0:00:06.4]} 60. Bc5 {[%clk 0:00:04.5]} 60... Kd5 {[%clk
0:00:06.2]} 61. Bb4 {[%clk 0:00:03.7]} 61... Kd4 {[%clk 0:00:06.6]} 62. Bd2
{[%clk 0:00:04]} 62... Rxa3 {[%clk 0:00:05.3]} 63. Bxf4 {[%clk 0:00:04.3]} 63...
Rxf3 {[%clk 0:00:05.8]} 64. Bc7 {[%clk 0:00:03.7]} 64... Kd3 {[%clk 0:00:05.5]}
65. Bb6 {[%clk 0:00:03]} 65... Rf5 {[%clk 0:00:05.8]} 66. Bc7 {[%clk 0:00:02]}
66... a5 {[%clk 0:00:06.1]} 67. Bd6 {[%clk 0:00:01.7]} 67... a4 {[%clk
0:00:06.4]} 68. Bb4 {[%clk 0:00:01.2]} 68... Kc4 {[%clk 0:00:06]} 69. Bd6 {[%clk
0:00:01.5]} 69... Kb3 {[%clk 0:00:06.3]} 70. Kd2 {[%clk 0:00:02.2]} 70... Rd5+
{[%clk 0:00:06.9]} 71. Kc1 {[%clk 0:00:02.2]} 71... Rxd6 {[%clk 0:00:07.8]} 72.
Kb1 {[%clk 0:00:02.9]} 72... Rd1# {[%clk 0:00:08.6]} 0-1

[Event "*** Titled Tuesday Blitz"]
[Site "Chess.com"]
[Date "2021.04.06"]
[Round "2"]
[White "Koalaskakistis"]
[Black "Konek-Gorbunok"]
[Result "1/2-1/2"]
[WhiteElo "2584"]
[BlackElo "2325"]
[TimeControl "180+1"]
[EndTime "10:20:15 PDT"]
[Termination "Game drawn - insufficient material"]

1. d4 {[%clk 0:03:00.9]} 1... d5 {[%clk 0:02:59.2]} 2. c4 {[%clk 0:02:59.9]}
2... e6 {[%clk 0:02:59.2]} 3. cxd5 {[%clk 0:02:57.4]} 3... exd5 {[%clk
0:02:58.2]} 4. Nc3 {[%clk 0:02:56.6]} 4... c6 {[%clk 0:02:58.4]} 5. Nf3 {[%clk
0:02:56]} 5... f5 {[%clk 0:02:58.6]} 6. g3 {[%clk 0:02:54.4]} 6... Nf6 {[%clk
0:02:59.1]} 7. Bg2 {[%clk 0:02:54]} 7... Be7 {[%clk 0:02:59.7]} 8. O-O {[%clk
0:02:52.4]} 8... O-O {[%clk 0:03:00.2]} 9. a3 {[%clk 0:02:50.3]} 9... Be6 {[%clk
0:03:00]} 10. b4 {[%clk 0:02:50.2]} 10... Ne4 {[%clk 0:02:59.4]} 11. Bb2 {[%clk
0:02:48]} 11... Nd7 {[%clk 0:02:58.3]} 12. Ne1 {[%clk 0:02:40.3]} 12... Rc8
{[%clk 0:02:56]} 13. e3 {[%clk 0:02:38]} 13... Nd6 {[%clk 0:02:53.8]} 14. Nd3
{[%clk 0:02:36.8]} 14... Nc4 {[%clk 0:02:53.2]} 15. Bc1 {[%clk 0:02:32.6]} 15...
a5 {[%clk 0:02:47]} 16. Nc5 {[%clk 0:02:27.9]} 16... Nxc5 {[%clk 0:02:39.4]} 17.
bxc5 {[%clk 0:02:24.9]} 17... b6 {[%clk 0:02:37.3]} 18. cxb6 {[%clk 0:02:18.7]}
18... Qxb6 {[%clk 0:02:36.9]} 19. Rb1 {[%clk 0:02:12.7]} 19... Qa7 {[%clk
0:02:34]} 20. Qa4 {[%clk 0:02:06.7]} 20... Nb6 {[%clk 0:02:21.6]} 21. Qc2 {[%clk
0:01:56.6]} 21... Nc4 {[%clk 0:02:21.6]} 22. Qa4 {[%clk 0:01:51.3]} 22... Nb6
{[%clk 0:02:20.8]} 23. Qb3 {[%clk 0:01:22.1]} 23... Rb8 {[%clk 0:02:13.2]} 24.
Qa2 {[%clk 0:01:11]} 24... Nc4 {[%clk 0:02:11.1]} 25. Re1 {[%clk 0:01:08.8]}
25... Rb7 {[%clk 0:01:54.3]} 26. Rxb7 {[%clk 0:00:56.7]} 26... Qxb7 {[%clk
0:01:53.9]} 27. Bf1 {[%clk 0:00:56.5]} 27... Rb8 {[%clk 0:01:41.1]} 28. e4
{[%clk 0:00:44.7]} 28... fxe4 {[%clk 0:01:23.2]} 29. Nxe4 {[%clk 0:00:43.7]}
29... Bf7 {[%clk 0:01:03.3]} 30. Ng5 {[%clk 0:00:22.6]} 30... Bxg5 {[%clk
0:01:02.1]} 31. Bxg5 {[%clk 0:00:23.5]} 31... Qb3 {[%clk 0:00:53.3]} 32. Qe2
{[%clk 0:00:10.7]} 32... h6 {[%clk 0:00:51.6]} 33. Be7 {[%clk 0:00:10.2]} 33...
Re8 {[%clk 0:00:49.9]} 34. Qg4 {[%clk 0:00:08.5]} 34... Qc2 {[%clk 0:00:21.9]}
35. Bf6 {[%clk 0:00:06.8]} 35... Qg6 {[%clk 0:00:21.8]} 36. Rxe8+ {[%clk
0:00:06.9]} 36... Bxe8 {[%clk 0:00:21.2]} 37. Qxg6 {[%clk 0:00:06.7]} 37... Bxg6
{[%clk 0:00:20.6]} 38. Be7 {[%clk 0:00:07.6]} 38... Kf7 {[%clk 0:00:15.1]} 39.
Bc5 {[%clk 0:00:08.2]} 39... Bf5 {[%clk 0:00:12.5]} 40. Be2 {[%clk 0:00:07.1]}
40... Ke6 {[%clk 0:00:12.3]} 41. Bd1 {[%clk 0:00:06.3]} 41... Nd2 {[%clk
0:00:11.2]} 42. Ba4 {[%clk 0:00:04.2]} 42... Kd7 {[%clk 0:00:11.3]} 43. Kg2
{[%clk 0:00:03.9]} 43... Nb1 {[%clk 0:00:10.8]} 44. f3 {[%clk 0:00:02.7]} 44...
Nc3 {[%clk 0:00:10.6]} 45. Bb3 {[%clk 0:00:03.4]} 45... Bd3 {[%clk 0:00:10]} 46.
g4 {[%clk 0:00:03.3]} 46... Bc4 {[%clk 0:00:09.4]} 47. Bc2 {[%clk 0:00:03.8]}
47... Nb5 {[%clk 0:00:07.9]} 48. h4 {[%clk 0:00:02.8]} 48... Nc7 {[%clk
0:00:07.8]} 49. g5 {[%clk 0:00:03.2]} 49... Ne6 {[%clk 0:00:07.6]} 50. Bb6
{[%clk 0:00:03.7]} 50... Ke7 {[%clk 0:00:06.7]} 51. gxh6 {[%clk 0:00:03.7]}
51... gxh6 {[%clk 0:00:07.6]} 52. Kg3 {[%clk 0:00:03.3]} 52... Kf7 {[%clk
0:00:07.4]} 53. Kg4 {[%clk 0:00:03.5]} 53... Be2 {[%clk 0:00:07.7]} 54. Bf5
{[%clk 0:00:02.8]} 54... Ng7 {[%clk 0:00:07.6]} 55. Bd7 {[%clk 0:00:03.3]} 55...
Bb5 {[%clk 0:00:07.7]} 56. Kf4 {[%clk 0:00:01.8]} 56... a4 {[%clk 0:00:08.1]}
57. Ke5 {[%clk 0:00:01.7]} 57... Nh5 {[%clk 0:00:08]} 58. Kd6 {[%clk 0:00:02.6]}
58... Nf4 {[%clk 0:00:08.1]} 59. Bxc6 {[%clk 0:00:03.1]} 59... Bxc6 {[%clk
0:00:07.7]} 60. Kxc6 {[%clk 0:00:04]} 60... Ng2 {[%clk 0:00:08.3]} 61. Kxd5
{[%clk 0:00:04.2]} 61... Nxh4 {[%clk 0:00:08.5]} 62. Ke4 {[%clk 0:00:05.1]}
62... Ng6 {[%clk 0:00:08.3]} 63. d5 {[%clk 0:00:05.1]} 63... Nf8 {[%clk
0:00:08]} 64. f4 {[%clk 0:00:02.9]} 64... Nd7 {[%clk 0:00:08.9]} 65. Bf2 {[%clk
0:00:02.6]} 65... h5 {[%clk 0:00:08.2]} 66. Bh4 {[%clk 0:00:02.1]} 66... Nb6
{[%clk 0:00:08.3]} 67. f5 {[%clk 0:00:02.4]} 67... Nc4 {[%clk 0:00:09.2]} 68. d6
{[%clk 0:00:02.3]} 68... Nxd6+ {[%clk 0:00:06.2]} 69. Kd5 {[%clk 0:00:02]} 69...
Nb5 {[%clk 0:00:07.1]} 70. Kc5 {[%clk 0:00:02.3]} 70... Nxa3 {[%clk 0:00:07.2]}
71. Kb4 {[%clk 0:00:03.2]} 71... Nc2+ {[%clk 0:00:08]} 72. Kxa4 {[%clk
0:00:04.1]} 72... Ne3 {[%clk 0:00:08.4]} 73. Kb4 {[%clk 0:00:05]} 73... Nxf5
{[%clk 0:00:08.5]} 74. Bf2 {[%clk 0:00:05.6]} 74... h4 {[%clk 0:00:08.9]} 75.
Kc3 {[%clk 0:00:05.9]} 75... h3 {[%clk 0:00:08.7]} 76. Bg1 {[%clk 0:00:06.4]}
76... h2 {[%clk 0:00:09]} 77. Bxh2 {[%clk 0:00:06]} 1/2-1/2

[Event "*** Titled Tuesday Blitz"]
[Site "Chess.com"]
[Date "2021.04.06"]
[Round "2"]
[White "NiranjanNavalgund"]
[Black "Abund"]
[Result "0-1"]
[WhiteElo "2506"]
[BlackElo "2741"]
[TimeControl "180+1"]
[EndTime "10:20:42 PDT"]
[Termination "Abund won on time"]

1. e4 {[%clk 0:03:00.4]} 1... c5 {[%clk 0:03:00]} 2. d4 {[%clk 0:02:59.4]} 2...
cxd4 {[%clk 0:02:59.9]} 3. c3 {[%clk 0:02:59.7]} 3... dxc3 {[%clk 0:03:00.8]} 4.
Nf3 {[%clk 0:02:59]} 4... Nc6 {[%clk 0:03:00.3]} 5. Bc4 {[%clk 0:02:59]} 5... e6
{[%clk 0:03:00.3]} 6. O-O {[%clk 0:02:58.2]} 6... a6 {[%clk 0:02:59.8]} 7. Nxc3
{[%clk 0:02:58.4]} 7... b5 {[%clk 0:02:59.9]} 8. Bb3 {[%clk 0:02:58]} 8... Bb7
{[%clk 0:03:00.5]} 9. Bg5 {[%clk 0:02:58]} 9... Nge7 {[%clk 0:03:00.7]} 10. Qe2
{[%clk 0:02:56.6]} 10... f6 {[%clk 0:02:49.7]} 11. Be3 {[%clk 0:02:54.7]} 11...
Ng6 {[%clk 0:02:49.4]} 12. Nd5 {[%clk 0:02:54.3]} 12... exd5 {[%clk 0:02:43.5]}
13. exd5 {[%clk 0:02:54.2]} 13... Nce5 {[%clk 0:02:43.4]} 14. Nd4 {[%clk
0:02:53.3]} 14... Bd6 {[%clk 0:02:00.6]} 15. Nf5 {[%clk 0:02:52.4]} 15... Qb8
{[%clk 0:01:58.4]} 16. f4 {[%clk 0:02:42.8]} 16... O-O {[%clk 0:01:55.4]} 17.
fxe5 {[%clk 0:02:38.5]} 17... fxe5 {[%clk 0:01:37.6]} 18. Qh5 {[%clk 0:02:24.8]}
18... Rf6 {[%clk 0:01:19.9]} 19. Nh6+ {[%clk 0:02:20.1]} 19... Kf8 {[%clk
0:01:10.4]} 20. Rxf6+ {[%clk 0:02:19.4]} 20... gxf6 {[%clk 0:01:10.3]} 21. Rf1
{[%clk 0:02:20.3]} 21... Be7 {[%clk 0:01:05]} 22. Ng4 {[%clk 0:02:14.5]} 22...
Kg7 {[%clk 0:00:57.6]} 23. Qh6+ {[%clk 0:02:14.3]} 23... Kh8 {[%clk 0:00:55.4]}
24. Nxf6 {[%clk 0:02:14.5]} 24... Bxf6 {[%clk 0:00:53.7]} 25. Rxf6 {[%clk
0:02:14]} 25... Qg8 {[%clk 0:00:51.3]} 26. d6 {[%clk 0:02:09.1]} 26... Qg7
{[%clk 0:00:50.2]} 27. Qg5 {[%clk 0:02:08.6]} 27... Rf8 {[%clk 0:00:47.4]} 28.
Rxf8+ {[%clk 0:02:00.3]} 28... Qxf8 {[%clk 0:00:47]} 29. Bc5 {[%clk 0:01:47.3]}
29... Kg7 {[%clk 0:00:38.8]} 30. Qg4 {[%clk 0:01:38.9]} 30... Bc6 {[%clk
0:00:36.9]} 31. h4 {[%clk 0:01:29.3]} 31... Qf4 {[%clk 0:00:36.6]} 32. Qxf4
{[%clk 0:01:28.8]} 32... Nxf4 {[%clk 0:00:33.4]} 33. g3 {[%clk 0:01:29]} 33...
Nd3 {[%clk 0:00:31]} 34. Be3 {[%clk 0:01:13]} 34... Nxb2 {[%clk 0:00:30.7]} 35.
h5 {[%clk 0:01:13]} 35... Nd3 {[%clk 0:00:27]} 36. h6+ {[%clk 0:01:13]} 36...
Kf6 {[%clk 0:00:24.6]} 37. g4 {[%clk 0:01:07.8]} 37... e4 {[%clk 0:00:19.1]} 38.
Kh2 {[%clk 0:00:55]} 38... Kg6 {[%clk 0:00:16.3]} 39. Kg3 {[%clk 0:00:53.5]}
39... Nb4 {[%clk 0:00:13]} 40. g5 {[%clk 0:00:41.6]} 40... Bd5 {[%clk
0:00:13.2]} 41. Bd1 {[%clk 0:00:38]} 41... Bxa2 {[%clk 0:00:12]} 42. Kh4 {[%clk
0:00:37.8]} 42... Kf7 {[%clk 0:00:12.3]} 43. Bh5+ {[%clk 0:00:37.1]} 43... Kg8
{[%clk 0:00:12.7]} 44. g6 {[%clk 0:00:36.8]} 44... Be6 {[%clk 0:00:10.5]} 45.
Kg5 {[%clk 0:00:34.8]} 45... Nc6 {[%clk 0:00:09.5]} 46. Bc1 {[%clk 0:00:31.3]}
46... Ne5 {[%clk 0:00:04.7]} 47. gxh7+ {[%clk 0:00:29.6]} 47... Kxh7 {[%clk
0:00:04.8]} 48. Kf6 {[%clk 0:00:27.1]} 48... Ng4+ {[%clk 0:00:03.6]} 49. Ke7
{[%clk 0:00:20.8]} 49... Nxh6 {[%clk 0:00:03.7]} 50. Be8 {[%clk 0:00:13.8]}
50... Nf5+ {[%clk 0:00:03.9]} 51. Kf6 {[%clk 0:00:14.3]} 51... Nxd6 {[%clk
0:00:04.7]} 52. Bg6+ {[%clk 0:00:14.9]} 52... Kg8 {[%clk 0:00:04.4]} 53. Ke5
{[%clk 0:00:14.2]} 53... Nc4+ {[%clk 0:00:04.8]} 54. Kxe4 {[%clk 0:00:14.5]}
54... a5 {[%clk 0:00:05.3]} 55. Kd4 {[%clk 0:00:14.6]} 55... Kg7 {[%clk
0:00:05.5]} 56. Bd3 {[%clk 0:00:14.3]} 56... Kf6 {[%clk 0:00:06.1]} 57. Bh6
{[%clk 0:00:12.5]} 57... Ke7 {[%clk 0:00:06.2]} 58. Bg5+ {[%clk 0:00:12.6]}
58... Kd6 {[%clk 0:00:06.5]} 59. Be4 {[%clk 0:00:11.9]} 59... Kc7 {[%clk
0:00:06.6]} 60. Bf4+ {[%clk 0:00:12.3]} 60... Kb6 {[%clk 0:00:07.1]} 61. Bg3
{[%clk 0:00:11.5]} 61... a4 {[%clk 0:00:07.5]} 62. Kc3 {[%clk 0:00:11.5]} 62...
Kc5 {[%clk 0:00:06.8]} 63. Bf2+ {[%clk 0:00:11.9]} 63... Kd6 {[%clk 0:00:07.1]}
64. Kb4 {[%clk 0:00:12.1]} 64... Ke5 {[%clk 0:00:07.1]} 65. Bd3 {[%clk
0:00:10.9]} 65... a3 {[%clk 0:00:06.8]} 66. Bb1 {[%clk 0:00:10.5]} 66... Nd2
{[%clk 0:00:06.5]} 67. Bg3+ {[%clk 0:00:06.9]} 67... Kd4 {[%clk 0:00:06.3]} 68.
Bf2+ {[%clk 0:00:06.3]} 68... Ke5 {[%clk 0:00:05.9]} 69. Bg3+ {[%clk 0:00:06.6]}
69... Kf6 {[%clk 0:00:06.4]} 70. Bh4+ {[%clk 0:00:07]} 70... Kg7 {[%clk
0:00:06.9]} 71. Bd3 {[%clk 0:00:05.3]} 71... a2 {[%clk 0:00:07.2]} 72. Bg3
{[%clk 0:00:04.7]} 72... a1=Q {[%clk 0:00:07.5]} 73. Kc5 {[%clk 0:00:03.9]}
73... Qf6 {[%clk 0:00:07.6]} 74. Kd6 {[%clk 0:00:03.5]} 74... Nb3 {[%clk
0:00:08]} 75. Be5 {[%clk 0:00:03.5]} 75... Nd4 {[%clk 0:00:07.1]} 0-1

[Event "*** Titled Tuesday Blitz"]
[Site "Chess.com"]
[Date "2021.04.06"]
[Round "2"]
[White "beautroll"]
[Black "parintele_chess"]
[Result "1/2-1/2"]
[WhiteElo "2454"]
[BlackElo "2251"]
[TimeControl "180+1"]
[EndTime "10:20:55 PDT"]
[Termination "Game drawn by repetition"]

1. e4 {[%clk 0:03:00.9]} 1... c5 {[%clk 0:02:53.3]} 2. Nf3 {[%clk 0:03:00.4]}
2... Nc6 {[%clk 0:02:52.9]} 3. d4 {[%clk 0:03:00.4]} 3... cxd4 {[%clk
0:02:53.8]} 4. Nxd4 {[%clk 0:03:01.3]} 4... Nf6 {[%clk 0:02:53.9]} 5. Nc3 {[%clk
0:03:00.8]} 5... h5 {[%clk 0:02:54.1]} 6. Bg5 {[%clk 0:02:52.7]} 6... Qa5 {[%clk
0:02:53.3]} 7. f4 {[%clk 0:02:47.9]} 7... Nxe4 {[%clk 0:02:42.7]} 8. Nb3 {[%clk
0:02:47.1]} 8... Nxc3 {[%clk 0:02:12.2]} 9. Qd2 {[%clk 0:02:41.7]} 9... Qb4
{[%clk 0:02:02.5]} 10. bxc3 {[%clk 0:02:38.7]} 10... Qe4+ {[%clk 0:02:02]} 11.
Be2 {[%clk 0:02:31.4]} 11... Qxg2 {[%clk 0:01:58.6]} 12. O-O-O {[%clk
0:02:30.4]} 12... e6 {[%clk 0:01:42.2]} 13. Qe3 {[%clk 0:02:22]} 13... Ba3+
{[%clk 0:01:14.7]} 14. Kb1 {[%clk 0:02:21.5]} 14... Ne7 {[%clk 0:01:10]} 15.
Rhg1 {[%clk 0:01:45.7]} 15... Qc6 {[%clk 0:01:03.2]} 16. Bf3 {[%clk 0:01:28.9]}
16... Qb5 {[%clk 0:00:45.7]} 17. Bxe7 {[%clk 0:00:49.4]} 17... Bxe7 {[%clk
0:00:44.5]} 18. Rxg7 {[%clk 0:00:49.1]} 18... Bf6 {[%clk 0:00:40.8]} 19. Rg2
{[%clk 0:00:46.7]} 19... a5 {[%clk 0:00:39.1]} 20. Rd5 {[%clk 0:00:33.5]} 20...
Qf1+ {[%clk 0:00:28.8]} 21. Rd1 {[%clk 0:00:32.1]} 21... Qb5 {[%clk 0:00:27]}
22. Rd5 {[%clk 0:00:30.1]} 22... Qf1+ {[%clk 0:00:24.9]} 23. Rd1 {[%clk
0:00:23.7]} 23... Qc4 {[%clk 0:00:24.3]} 24. Kb2 {[%clk 0:00:08.7]} 24... a4
{[%clk 0:00:23.2]} 25. Be2 {[%clk 0:00:04.4]} 25... a3+ {[%clk 0:00:19]} 26. Kb1
{[%clk 0:00:02.8]} 26... Qxc3 {[%clk 0:00:19.4]} 27. Qxc3 {[%clk 0:00:02.8]}
27... Bxc3 {[%clk 0:00:20.1]} 28. f5 {[%clk 0:00:02.8]} 28... d5 {[%clk
0:00:18]} 29. fxe6 {[%clk 0:00:02]} 29... Bxe6 {[%clk 0:00:18.4]} 30. Bb5+
{[%clk 0:00:02.9]} 30... Ke7 {[%clk 0:00:16.6]} 31. Re2 {[%clk 0:00:03.1]} 31...
Rad8 {[%clk 0:00:12.5]} 32. Re3 {[%clk 0:00:02.8]} 32... Bf6 {[%clk 0:00:12.2]}
33. Nc5 {[%clk 0:00:02.9]} 33... b6 {[%clk 0:00:10]} 34. Nxe6 {[%clk 0:00:02.1]}
34... fxe6 {[%clk 0:00:10.9]} 35. Rde1 {[%clk 0:00:03]} 35... Rd6 {[%clk
0:00:08.7]} 36. Bd3 {[%clk 0:00:03.6]} 36... e5 {[%clk 0:00:08.1]} 37. Bf5
{[%clk 0:00:03.8]} 37... e4 {[%clk 0:00:07.7]} 38. h3 {[%clk 0:00:03]} 38... Ra8
{[%clk 0:00:06.2]} 39. c4 {[%clk 0:00:03.1]} 39... Ra5 {[%clk 0:00:04.7]} 40.
cxd5 {[%clk 0:00:03]} 40... Rb5+ {[%clk 0:00:05]} 41. Kc2 {[%clk 0:00:02.7]}
41... Rdxd5 {[%clk 0:00:05.3]} 42. Rxe4+ {[%clk 0:00:02.6]} 42... Re5 {[%clk
0:00:06.2]} 43. Rxe5+ {[%clk 0:00:02.7]} 43... Rxe5 {[%clk 0:00:07.1]} 44. Rxe5+
{[%clk 0:00:02.8]} 44... Bxe5 {[%clk 0:00:08]} 45. Kb3 {[%clk 0:00:03.2]} 45...
Bd6 {[%clk 0:00:07.5]} 46. Kc4 {[%clk 0:00:03.1]} 46... Kf6 {[%clk 0:00:07.5]}
47. Bd7 {[%clk 0:00:02.9]} 47... Bc5 {[%clk 0:00:07]} 48. Kb3 {[%clk 0:00:02.2]}
48... Kg5 {[%clk 0:00:06.6]} 49. Bc8 {[%clk 0:00:02.5]} 49... Kf4 {[%clk
0:00:06.6]} 50. Bd7 {[%clk 0:00:02.5]} 50... Kg3 {[%clk 0:00:06.1]} 51. Bc8
{[%clk 0:00:02.7]} 51... Kh4 {[%clk 0:00:06.1]} 52. Bd7 {[%clk 0:00:02.9]} 52...
Kg5 {[%clk 0:00:06.3]} 53. Bc8 {[%clk 0:00:03.3]} 53... Kf6 {[%clk 0:00:06.4]}
54. Bd7 {[%clk 0:00:03.5]} 54... Bd6 {[%clk 0:00:06.2]} 55. Bc8 {[%clk
0:00:03.6]} 55... Bf8 {[%clk 0:00:06]} 56. Bd7 {[%clk 0:00:03.7]} 56... Be7
{[%clk 0:00:06]} 57. Bc8 {[%clk 0:00:02.9]} 57... Ke5 {[%clk 0:00:06.3]} 58. Bd7
{[%clk 0:00:02.6]} 58... Kd6 {[%clk 0:00:05.8]} 59. Bf5 {[%clk 0:00:02.6]} 59...
Ke5 {[%clk 0:00:05.7]} 60. Bd7 {[%clk 0:00:02.7]} 60... Kd4 {[%clk 0:00:05.9]}
61. Bc8 {[%clk 0:00:02.8]} 61... b5 {[%clk 0:00:05.4]} 62. Bd7 {[%clk
0:00:02.9]} 62... b4 {[%clk 0:00:06.3]} 63. Bc8 {[%clk 0:00:03]} 63... Ke3
{[%clk 0:00:06.3]} 64. Bd7 {[%clk 0:00:03.2]} 64... h4 {[%clk 0:00:06.7]} 65.
Bc8 {[%clk 0:00:03.5]} 65... Kf4 {[%clk 0:00:07.6]} 66. Bd7 {[%clk 0:00:03.8]}
66... Ke4 {[%clk 0:00:08.1]} 67. Bc8 {[%clk 0:00:04.3]} 67... Bd6 {[%clk
0:00:08.3]} 68. Bd7 {[%clk 0:00:04.7]} 68... Bf8 {[%clk 0:00:08.4]} 69. Bc8
{[%clk 0:00:05.1]} 69... Kd3 {[%clk 0:00:08.4]} 70. Bd7 {[%clk 0:00:05.4]} 70...
Kd2 {[%clk 0:00:08.6]} 71. Bc8 {[%clk 0:00:05.9]} 71... Kc1 {[%clk 0:00:09.5]}
72. Bf5 {[%clk 0:00:06.3]} 72... Be7 {[%clk 0:00:08.5]} 73. Be6 {[%clk
0:00:07.2]} 73... Bf6 {[%clk 0:00:08.7]} 74. Bd7 {[%clk 0:00:07.5]} 74... Be7
{[%clk 0:00:09.6]} 75. Be6 {[%clk 0:00:07.8]} 75... Kd2 {[%clk 0:00:09.8]} 76.
Bd7 {[%clk 0:00:07.7]} 76... Ke3 {[%clk 0:00:10.7]} 77. Be6 {[%clk 0:00:08.1]}
77... Ke4 {[%clk 0:00:11]} 78. Bd7 {[%clk 0:00:08.5]} 78... Kf4 {[%clk 0:00:11]}
79. Bc8 {[%clk 0:00:08.9]} 79... Kg3 {[%clk 0:00:11]} 80. Bd7 {[%clk 0:00:09.8]}
80... Kf2 {[%clk 0:00:11]} 81. Be6 {[%clk 0:00:10.2]} 81... Ke2 {[%clk
0:00:11.1]} 82. Bd7 {[%clk 0:00:11.1]} 82... Ke3 {[%clk 0:00:11.3]} 1/2-1/2

[Event "*** Titled Tuesday Blitz"]
[Site "Chess.com"]
[Date "2021.04.06"]
[Round "3"]
[White "mariofs"]
[Black "AwareIdea"]
[Result "0-1"]
[WhiteElo "2221"]
[BlackElo "2441"]
[TimeControl "180+1"]
[EndTime "10:22:22 PDT"]
[Termination "AwareIdea won by resignation"]

1. d4 {[%clk 0:03:00.9]} 1... d5 {[%clk 0:02:59.2]} 2. c4 {[%clk 0:03:00.7]}
2... e6 {[%clk 0:02:59.3]} 3. Nf3 {[%clk 0:03:00.1]} 3... Nf6 {[%clk 0:02:58.7]}
4. g3 {[%clk 0:03:01]} 4... Be7 {[%clk 0:02:57.2]} 5. Bg2 {[%clk 0:03:01.9]}
5... O-O {[%clk 0:02:57.3]} 6. O-O {[%clk 0:03:02.8]} 6... dxc4 {[%clk
0:02:57.7]} 7. Qc2 {[%clk 0:03:03.2]} 7... a6 {[%clk 0:02:58.3]} 8. Qxc4 {[%clk
0:03:03.8]} 8... b5 {[%clk 0:02:58.8]} 9. Qc2 {[%clk 0:03:04.5]} 9... Bb7 {[%clk
0:02:59.2]} 10. Bd2 {[%clk 0:03:05]} 10... Nbd7 {[%clk 0:02:59.6]} 11. Qc1
{[%clk 0:03:05.7]} 11... c5 {[%clk 0:02:58.9]} 12. dxc5 {[%clk 0:03:04.2]} 12...
Nxc5 {[%clk 0:02:59.8]} 13. Nc3 {[%clk 0:03:02.4]} 13... Rc8 {[%clk 0:02:58.6]}
14. Rd1 {[%clk 0:02:58.8]} 14... b4 {[%clk 0:02:53.1]} 15. Na4 {[%clk
0:02:57.5]} 15... Nxa4 {[%clk 0:02:48.7]} 0-1